bitfinex/quotes_SOLUSD_20241102
["timestamp","ask_amount","ask_price","bid_price","bid_amount"]
[1730526702231,8.74123403,166.96,166.9,29.71153403]
[1730526702748,8.74123403,166.96,166.9,23.71993403]
[1730526703629,5.9898,166.95,166.9,23.71993403]
[1730526703951,5.9898,166.95,166.91,8.74123403]
[1730526705028,8.74123403,166.97,166.91,8.74123403]
[1730526705542,8.74123403,166.97,166.9,20.9703]
[1730526705543,8.74123403,166.97,166.92,8.74123403]
[1730526706546,5.9894,166.96,166.92,8.74123403]
[1730526707250,5.9894,166.96,166.91,8.74123403]
[1730526709736,14.73063403,166.96,166.91,8.74123403]
[1730526712952,8.74123403,166.97,166.91,8.74123403]
[1730526714454,5.9894,166.96,166.91,8.74123403]
[1730526719947,14.73063403,166.96,166.9,23.71993403]
[1730526721652,8.74123403,166.93,166.87,14.98422018]
[1730526721860,8.74123403,166.92,166.87,6.24298615]
[1730526722036,8.74123403,166.91,166.86,29.71583403]
[1730526722238,8.74123403,166.92,166.86,29.71583403]
[1730526722756,5.9912,166.91,166.86,29.71583403]
[1730526723055,5.9912,166.91,166.87,8.74123403]
[1730526724156,8.74123403,166.93,166.87,8.74123403]
[1730526724362,5.9908,166.92,166.87,8.74123403]
[1730526726955,8.74123403,166.92,166.87,8.74123403]
[1730526727161,8.74123403,166.92,166.86,29.71583403]
[1730526728250,5.9912,166.91,166.86,29.71583403]
[1730526728565,14.73243403,166.91,166.85,9.60030738]
[1730526728765,8.74123403,166.9,166.85,9.60030738]
[1730526730344,14.73293403,166.9,166.85,15.59360738]
[1730526733674,8.74123403,166.91,166.86,8.74123403]
[1730526733852,8.74123403,166.92,166.87,8.74123403]
[1730526734669,5.9912,166.91,166.87,8.74123403]
[1730526737148,5.9912,166.91,166.86,8.74123403]
[1730526740070,14.73203403,166.93,166.88,8.74123403]
[1730526740267,5.9908,166.93,166.89,8.74123403]
[1730526740473,8.74123403,166.94,166.85,21.83587335]
[1730526740474,36.47023403,166.95,166.9,8.74123403]
[1730526740670,21.1091,166.95,166.91,8.74123403]
[1730526741063,14.72993403,166.98,166.92,8.74123403]
[1730526749475,8.74123403,166.97,166.92,8.74123403]
[1730526749779,5.9894,166.96,166.92,8.74123403]
[1730526752568,5.9894,166.96,166.9,5.9915]
[1730526752569,5.9894,166.96,166.91,8.74123403]
[1730526753183,14.73063403,166.96,166.9,8.74123403]
[1730526753879,14.73063403,166.96,166.9,14.73273403]
[1730526755279,14.73063403,166.96,166.91,8.74123403]
[1730526756784,14.73063403,166.96,166.9,14.73273403]
[1730526762169,8.74123403,166.95,166.9,8.74123403]
[1730526762373,8.74123403,166.95,166.89,8.74123403]
[1730526763484,5.9901,166.94,166.89,8.74123403]
[1730526766685,5.9901,166.94,166.9,8.74123403]
[1730526783299,8.74123403,166.98,166.92,8.74123403]
[1730526783593,5.9887,166.98,166.93,8.74123403]
[1730526783975,35.97883403,166.99,166.94,8.74123403]
[1730526784194,27.2376,166.99,166.94,14.73123403]
[1730526784495,14.72853403,167.02,166.97,8.74123403]
[1730526792598,5.9873,167.02,166.98,8.74123403]
[1730526794384,21.21673403,167.03,166.98,14.72993403]
[1730526807999,12.4755,167.03,166.99,8.74123403]
[1730526810390,12.4755,167.03,166.98,14.72983403]
[1730526816806,21.21673403,167.03,166.97,23.71383403]
[1730526819198,8.74123403,167.02,166.96,14.73043403]
[1730526819810,21.21673403,167.03,166.97,8.74123403]
[1730526824816,12.4755,167.03,166.97,8.74123403]
[1730526825717,12.4755,167.03,166.98,8.74123403]
[1730526827024,12.4755,167.03,166.97,8.74123403]
[1730526830004,21.21673403,167.03,166.97,8.74123403]
[1730526833005,21.21673403,167.03,166.97,14.73023403]
[1730526833330,21.21673403,167.03,166.97,8.74123403]
[1730526833504,8.74123403,167.02,166.96,8.74123403]
[1730526834505,5.9876,167.01,166.96,8.74123403]
[1730526835829,5.9876,167.01,166.98,8.74123403]
[1730526836310,5.9876,167.01,166.97,8.74123403]
[1730526838227,15.22983403,167.03,166.97,8.74123403]
[1730526838428,5.9873,167.02,166.97,8.74123403]
[1730526841033,8.74123403,167.01,166.95,14.73093403]
[1730526841222,8.74123403,167.0,166.95,14.73093403]
[1730526842211,14.72943403,167.0,166.95,14.73093403]
[1730526842418,14.72943403,167.0,166.95,8.74123403]
[1730526843530,5.9882,167.0,166.95,8.74123403]
[1730526845915,5.9882,167.0,166.96,8.74123403]
[1730526848513,76.5886,167.03,166.98,8.74123403]
[1730526848514,5.9876,167.02,166.98,8.74123403]
[1730526848837,5.9876,167.02,166.99,8.74123403]
[1730526849025,5.9876,167.02,166.98,8.74123403]
[1730526855140,5.9876,167.02,166.98,14.72993403]
[1730526855933,5.9876,167.02,166.96,14.9736]
[1730526855934,5.9876,167.02,166.99,8.74123403]
[1730526860647,8.74123403,167.06,167.0,8.74123403]
[1730526862028,5.9862,167.05,167.0,8.74123403]
[1730526864762,5.9862,167.05,166.99,20.9592]
[1730526864763,14.72743403,167.05,166.99,23.71213403]
[1730526867845,8.74123403,167.02,166.96,8.74123403]
[1730526869646,5.9876,167.01,166.96,8.74123403]
[1730526870851,14.72883403,167.01,166.95,8.74123403]
[1730526871040,8.74123403,167.0,166.94,8.74123403]
[1730526871352,8.74123403,167.0,166.95,8.74123403]
[1730526872267,5.9883,166.99,166.95,8.74123403]
[1730526877545,0.12549,167.0,166.95,8.74123403]
[1730526878249,8.74123403,166.98,166.93,8.74123403]
[1730526879245,5.989,166.97,166.93,8.74123403]
[1730526880249,24.70403403,166.99,166.93,8.74123403]
[1730526880469,5.9887,166.98,166.93,8.74123403]
[1730526890545,5.9887,166.98,166.94,8.74123403]
[1730526890752,5.9887,166.98,166.96,8.74123403]
[1730526890947,5.9887,166.98,166.94,8.74123403]
[1730526897669,5.9887,166.98,166.93,8.74123403]
[1730526901371,5.9887,166.98,166.94,8.74123403]
[1730526901556,5.9887,166.98,166.93,8.74123403]
[1730526901557,14.72993403,166.98,166.93,8.74123403]
[1730526906865,5.9887,166.98,166.93,8.74123403]
[1730526907956,5.9887,166.98,166.94,8.74123403]
[1730526917481,5.9887,166.98,166.93,8.74123403]
[1730526918390,5.9887,166.98,166.92,14.9772]
[1730526918391,14.72993403,166.98,166.92,23.71843403]
[1730526936470,5.9887,166.98,166.93,8.74123403]
[1730526936689,5.9887,166.98,166.94,8.74123403]
[1730526940594,5.9887,166.98,166.93,8.74123403]
[1730526941892,14.72993403,166.98,166.92,23.71843403]
[1730526951503,8.74123403,166.97,166.92,8.74123403]
[1730526951710,8.74123403,166.94,166.89,21.22913834]
[1730526952005,8.74123403,166.93,166.87,14.73383403]
[1730526952305,8.74123403,166.92,166.87,8.74123403]
[1730526953510,5.9912,166.91,166.87,8.74123403]
[1730526955894,5.9912,166.91,166.85,6.80013123]
[1730526955895,14.73243403,166.91,166.85,9.54806526]
[1730526956098,8.74123403,166.9,166.85,9.54806526]
[1730526956290,8.74123403,166.9,166.85,0.80683123]
[1730526957323,5.9919,166.89,166.85,0.80683123]
[1730526957605,5.9919,166.89,166.85,9.54806526]
[1730526957979,5.9919,166.89,166.86,8.74123403]
[1730526960306,5.9916,166.9,166.86,8.74123403]
[1730526960603,5.9916,166.9,166.85,9.54806526]
[1730526961187,5.9916,166.9,166.85,8.74123403]
[1730526961505,14.73283403,166.9,166.85,8.74123403]
[1730526968006,5.9916,166.9,166.86,8.74123403]
[1730526976009,5.9916,166.9,166.85,8.74123403]
[1730526978425,8.74123403,166.9,166.85,8.74123403]
[1730526979021,8.74123403,166.9,166.84,8.74123403]
[1730526980530,5.9919,166.89,166.84,8.74123403]
[1730526982710,5.9919,166.89,166.83,12.24031187]
[1730526982711,5.9919,166.89,166.85,8.74123403]
[1730526985198,5.9919,166.89,166.84,8.74123403]
[1730526986811,5.9919,166.89,166.85,8.74123403]
[1730526993612,5.9919,166.89,166.84,8.74123403]
[1730526994906,5.9919,166.89,166.83,14.9876459]
[1730526994907,14.73313403,166.89,166.83,14.9876459]
[1730526995118,30.77463403,166.89,166.83,14.9876459]
[1730526995320,8.74123403,166.88,166.83,6.24641187]
[1730526995923,22.0334,166.89,166.83,6.24641187]
[1730526995924,30.77463403,166.89,166.83,14.9876459]
[1730526996430,30.77463403,166.89,166.84,8.74123403]
[1730527001536,22.0334,166.89,166.84,8.74123403]
[1730527007639,30.77463403,166.89,166.84,8.74123403]
[1730527009739,22.0334,166.89,166.84,8.74123403]
[1730527011437,5.9919,166.89,166.85,8.74123403]
[1730527012743,20.0,166.9,166.85,8.74123403]
[1730527012929,25.9916,166.9,166.85,8.74123403]
[1730527017548,34.73283403,166.9,166.85,8.74123403]
[1730527017747,34.73283403,166.9,166.86,8.74123403]
[1730527017748,5.9916,166.9,166.86,8.74123403]
[1730527018947,14.73243403,166.91,166.86,8.74123403]
[1730527019151,14.73243403,166.91,166.85,8.74123403]
[1730527024829,5.9912,166.91,166.87,8.74123403]
[1730527025030,5.9908,166.92,166.88,8.74123403]
[1730527026334,5.9908,166.92,166.87,8.74123403]
[1730527026639,14.73203403,166.92,166.87,8.74123403]
[1730527028560,5.9908,166.92,166.87,8.74123403]
[1730527028733,5.9908,166.92,166.87,14.73383403]
[1730527035342,14.73183403,166.93,166.87,29.71553403]
[1730527035660,14.73183403,166.93,166.88,8.74123403]
[1730527036845,14.73103403,166.95,166.89,8.74123403]
[1730527037963,14.73103403,166.95,166.9,8.74123403]
[1730527044365,8.74123403,166.94,166.89,8.74123403]
[1730527045570,5.9905,166.93,166.89,8.74123403]
[1730527046068,5.9905,166.93,166.88,14.73343403]
[1730527047382,5.9905,166.93,166.89,8.74123403]
[1730527051467,14.73103403,166.95,166.89,8.74123403]
[1730527055857,5.9898,166.95,166.9,8.74123403]
[1730527073191,14.73103403,166.95,166.89,8.74123403]
[1730527078181,14.73173403,166.93,166.88,14.9808]
[1730527081090,14.73173403,166.93,166.88,23.72203403]
[1730527082427,14.73173403,166.93,166.88,8.74123403]
[1730527082586,8.74123403,166.92,166.87,8.74123403]
[1730527082999,5.9912,166.91,166.87,8.74123403]
[1730527087495,5.9912,166.91,166.89,8.74123403]
[1730527087700,6.2216,166.96,166.9,8.74123403]
[1730527088007,5.9898,166.95,166.91,8.74123403]
[1730527089993,5.9898,166.95,166.9,8.74123403]
[1730527093210,5.9898,166.95,166.91,1.49931781]
[1730527093422,5.9898,166.95,166.9,8.74123403]
[1730527093587,5.9898,166.95,166.91,1.49931782]
[1730527093905,5.9898,166.95,166.9,8.74123403]
[1730527094086,5.9898,166.95,166.91,1.49931939]
[1730527094287,5.9898,166.95,166.92,1.49931939]
[1730527094493,5.9898,166.95,166.9,8.74123403]
[1730527094694,5.9898,166.95,166.91,1.49926629]
[1730527094906,5.9898,166.95,166.92,1.49926629]
[1730527095111,5.9898,166.95,166.9,8.74123403]
[1730527095388,14.73103403,166.95,166.91,1.49928764]
[1730527095605,14.73103403,166.95,166.92,1.49928764]
[1730527095910,5.9898,166.95,166.9,8.74123403]
[1730527096108,5.9898,166.95,166.91,1.49930257]
[1730527096310,5.9898,166.95,166.92,1.49930283]
[1730527096605,5.9898,166.95,166.9,8.74123403]
[1730527096811,5.9898,166.95,166.91,1.49927585]
[1730527097013,5.9898,166.95,166.92,1.49927585]
[1730527097309,5.9898,166.95,166.9,8.74123403]
[1730527097513,5.9898,166.95,166.91,1.49925662]
[1730527097689,5.9898,166.95,166.92,1.49925662]
[1730527098013,5.9898,166.95,166.91,8.74123403]
[1730527098312,5.9898,166.95,166.92,1.49925649]
[1730527098495,5.9898,166.95,166.91,8.74123403]
[1730527098700,5.9898,166.95,166.92,1.49925779]
[1730527098910,5.9898,166.95,166.93,1.49925779]
[1730527099110,5.9898,166.95,166.91,8.74123403]
[1730527099306,5.9898,166.95,166.92,1.49925978]
[1730527099510,5.9898,166.95,166.93,1.49925978]
[1730527099809,5.9898,166.95,166.91,8.74123403]
[1730527100011,5.9898,166.95,166.92,1.49921981]
[1730527100214,5.9898,166.95,166.93,1.49921981]
[1730527100396,5.9898,166.95,166.91,8.74123403]
[1730527100713,5.9898,166.95,166.92,1.49921369]
[1730527100911,5.9898,166.95,166.93,1.49921369]
[1730527101214,5.9898,166.95,166.9,8.74123403]
[1730527101511,5.9898,166.95,166.91,1.49922812]
[1730527101695,5.9898,166.95,166.92,1.49922812]
[1730527101896,5.9898,166.95,166.93,1.49922812]
[1730527102096,5.9898,166.95,166.9,8.74123403]
[1730527102413,5.9898,166.95,166.91,1.49922809]
[1730527102705,5.9898,166.95,166.92,1.49922809]
[1730527102894,5.9898,166.95,166.93,1.49922809]
[1730527103097,5.9898,166.95,166.9,8.74123403]
[1730527103316,5.9898,166.95,166.91,1.49922885]
[1730527103490,5.9898,166.95,166.92,1.49922885]
[1730527103693,5.9898,166.95,166.93,1.49922885]
[1730527103914,5.9898,166.95,166.9,8.74123403]
[1730527104100,5.9898,166.95,166.91,1.49922809]
[1730527104400,5.9898,166.95,166.92,1.49922809]
[1730527104602,5.9898,166.95,166.93,1.49922809]
[1730527104808,5.9898,166.95,166.91,8.74123403]
[1730527105000,5.9898,166.95,166.92,1.49922841]
[1730527105313,5.9898,166.95,166.93,1.49922841]
[1730527105501,5.9898,166.95,166.91,8.74123403]
[1730527105695,5.9898,166.95,166.92,1.49922947]
[1730527105891,5.9898,166.95,166.93,1.49922947]
[1730527106091,5.9898,166.95,166.91,8.74123403]
[1730527106292,5.9898,166.95,166.92,1.49922838]
[1730527106494,5.9898,166.95,166.93,1.49922838]
[1730527106694,5.9898,166.95,166.91,8.74123403]
[1730527107002,5.9898,166.95,166.92,1.49921357]
[1730527107201,5.9898,166.95,166.93,1.49921357]
[1730527107433,5.9898,166.95,166.91,8.74123403]
[1730527107611,5.9898,166.95,166.92,1.49920237]
[1730527107913,5.9898,166.95,166.93,1.49920237]
[1730527108091,5.9898,166.95,166.91,8.74123403]
[1730527108291,5.9898,166.95,166.92,1.49922841]
[1730527108512,5.9898,166.95,166.93,1.49922841]
[1730527108696,5.9898,166.95,166.91,8.74123403]
[1730527108903,5.9898,166.95,166.92,1.49922841]
[1730527109102,5.9898,166.95,166.93,1.49922841]
[1730527109306,5.9898,166.95,166.9,8.74123403]
[1730527109519,5.9898,166.95,166.91,1.49922876]
[1730527109719,5.9898,166.95,166.92,1.49922876]
[1730527109899,5.9898,166.95,166.93,1.49922876]
[1730527110199,5.9898,166.95,166.9,8.74123403]
[1730527110517,5.9898,166.95,166.91,1.499228]
[1730527110704,14.73103403,166.95,166.92,1.499228]
[1730527110905,14.73103403,166.95,166.93,1.499228]
[1730527111209,14.73103403,166.95,166.89,14.73313403]
[1730527111513,14.73103403,166.95,166.9,1.49924394]
[1730527111714,14.73103403,166.95,166.91,1.49924394]
[1730527111894,14.73103403,166.95,166.92,1.49924394]
[1730527112094,14.73103403,166.95,166.93,1.49924394]
[1730527112414,14.73103403,166.95,166.89,14.73313403]
[1730527112717,14.73103403,166.95,166.9,1.49921326]
[1730527112901,14.73103403,166.95,166.91,1.49921326]
[1730527113102,14.73103403,166.95,166.92,1.49921326]
[1730527113314,14.73103403,166.95,166.93,1.49921326]
[1730527113498,14.73103403,166.95,166.89,14.73313403]
[1730527113704,14.73103403,166.95,166.9,1.49927006]
[1730527113916,14.73103403,166.95,166.91,1.49927006]
[1730527114104,14.73103403,166.95,166.92,1.49927006]
[1730527114308,14.73103403,166.95,166.93,1.49927006]
[1730527114619,14.73103403,166.95,166.89,14.73313403]
[1730527114806,14.73103403,166.95,166.9,1.49925878]
[1730527115107,14.73103403,166.95,166.89,14.73313403]
[1730527115108,14.73103403,166.95,166.91,1.49925878]
[1730527115409,14.73103403,166.95,166.92,1.49925878]
[1730527115597,14.73103403,166.95,166.93,1.49925878]
[1730527115797,14.73103403,166.95,166.89,14.73313403]
[1730527115993,14.73103403,166.95,166.9,1.49925878]
[1730527116195,14.73103403,166.95,166.91,1.49925853]
[1730527116398,14.73103403,166.95,166.92,1.49925853]
[1730527116613,14.73103403,166.95,166.93,1.49925853]
[1730527116806,14.73103403,166.95,166.89,14.73313403]
[1730527117120,14.73103403,166.95,166.9,1.49925777]
[1730527117320,14.73103403,166.95,166.91,1.49925777]
[1730527117496,14.73103403,166.95,166.92,1.49925777]
[1730527117696,14.73103403,166.95,166.93,1.49925777]
[1730527117904,14.73103403,166.95,166.89,14.73313403]
[1730527118115,14.73103403,166.95,166.9,1.49928159]
[1730527118302,14.73103403,166.95,166.91,1.49928159]
[1730527118505,14.73103403,166.95,166.92,1.49928159]
[1730527118707,14.73103403,166.95,166.89,14.73313403]
[1730527118708,14.73103403,166.95,166.93,1.49925802]
[1730527118898,14.73103403,166.95,166.89,14.73313403]
[1730527119204,14.73103403,166.95,166.9,1.49925777]
[1730527119407,14.73103403,166.95,166.91,1.49925777]
[1730527119702,14.73103403,166.95,166.92,1.49925777]
[1730527119901,14.73103403,166.95,166.93,1.49925777]
[1730527120116,14.73103403,166.95,166.89,14.73313403]
[1730527120305,14.73103403,166.95,166.9,1.49925777]
[1730527120621,14.73103403,166.95,166.91,1.49925777]
[1730527120921,14.73103403,166.95,166.89,14.73313403]
[1730527120922,14.73103403,166.95,166.92,1.49925777]
[1730527121120,14.73103403,166.95,166.93,1.49925777]
[1730527121328,14.73103403,166.95,166.89,14.73313403]
[1730527121510,14.73103403,166.95,166.9,1.49925621]
[1730527121710,14.73103403,166.95,166.91,1.49925621]
[1730527122013,14.73103403,166.95,166.92,1.49925621]
[1730527122205,14.73103403,166.95,166.89,14.73313403]
[1730527122413,14.73103403,166.95,166.9,1.49927871]
[1730527122716,14.73103403,166.95,166.91,1.49927871]
[1730527122922,14.73103403,166.95,166.92,1.49927871]
[1730527123100,14.73103403,166.95,166.93,1.49927871]
[1730527123302,14.73103403,166.95,166.89,14.73313403]
[1730527123511,14.73103403,166.95,166.9,1.49925877]
[1730527123708,14.73103403,166.95,166.89,14.73313403]
[1730527124023,14.73103403,166.95,166.9,1.49925852]
[1730527124325,14.73103403,166.95,166.91,1.49925852]
[1730527124517,14.73103403,166.95,166.92,1.49925852]
[1730527124700,14.73103403,166.95,166.93,1.49925852]
[1730527124900,14.73103403,166.95,166.89,14.73313403]
[1730527125212,14.73103403,166.95,166.9,1.49925776]
[1730527125513,14.73103403,166.95,166.91,1.49925776]
[1730527125717,14.73103403,166.95,166.92,1.49925776]
[1730527125916,14.73103403,166.95,166.93,1.49925776]
[1730527126136,14.73103403,166.95,166.89,14.73313403]
[1730527126326,14.73103403,166.95,166.9,1.49925877]
[1730527126534,14.73103403,166.95,166.89,14.73313403]
[1730527126535,14.73103403,166.95,166.91,1.49925877]
[1730527126831,14.73103403,166.95,166.92,1.49925877]
[1730527127018,14.73103403,166.95,166.93,1.49925877]
[1730527127221,14.73103403,166.95,166.89,14.73313403]
[1730527127446,14.73103403,166.95,166.9,1.49925877]
[1730527127722,14.73103403,166.95,166.91,1.49925877]
[1730527127918,14.73103403,166.95,166.92,1.49925877]
[1730527128118,14.73103403,166.95,166.93,1.49925877]
[1730527128352,14.73103403,166.95,166.9,8.74123403]
[1730527128512,14.73103403,166.95,166.91,1.49925852]
[1730527128712,14.73103403,166.95,166.92,1.49925852]
[1730527128914,14.73103403,166.95,166.93,1.49925852]
[1730527129112,14.73103403,166.95,166.9,8.74123403]
[1730527129415,14.73103403,166.95,166.91,1.49923707]
[1730527129617,14.73103403,166.95,166.92,1.49923707]
[1730527129820,14.73103403,166.95,166.93,1.49923707]
[1730527130031,14.73103403,166.95,166.9,8.74123403]
[1730527130222,14.73103403,166.95,166.91,1.49921558]
[1730527130419,14.73103403,166.95,166.92,1.49921558]
[1730527130724,14.73103403,166.95,166.93,1.49921558]
[1730527130924,14.73103403,166.95,166.9,8.74123403]
[1730527131132,14.73103403,166.95,166.91,1.49926007]
[1730527131341,14.73103403,166.95,166.92,1.49926007]
[1730527131524,14.73103403,166.95,166.93,1.49926007]
[1730527131836,14.73103403,166.95,166.9,8.74123403]
[1730527132031,5.9898,166.95,166.91,1.49922884]
[1730527132333,5.9898,166.95,166.92,1.49922884]
[1730527132634,5.9898,166.95,166.93,1.49922884]
[1730527132932,5.9898,166.95,166.9,8.74123403]
[1730527133136,5.9898,166.95,166.91,1.49922808]
[1730527133309,5.9898,166.95,166.92,1.49922808]
[1730527133514,5.9898,166.95,166.93,1.49922808]
[1730527133725,5.9898,166.95,166.9,8.74123403]
[1730527133925,5.9898,166.95,166.91,1.49925851]
[1730527134127,5.9898,166.95,166.92,1.49925851]
[1730527134334,5.9898,166.95,166.93,1.49925851]
[1730527134524,5.9898,166.95,166.9,8.74123403]
[1730527134722,5.9898,166.95,166.91,1.49925851]
[1730527134942,5.9898,166.95,166.9,8.74123403]
[1730527135239,5.9898,166.95,166.92,1.49925825]
[1730527135414,5.9898,166.95,166.93,1.49925825]
[1730527135615,5.9898,166.95,166.9,8.74123403]
[1730527135815,5.9898,166.95,166.91,1.49925851]
[1730527136026,5.9898,166.95,166.92,1.49925851]
[1730527136226,5.9898,166.95,166.93,1.49925851]
[1730527136435,5.9898,166.95,166.9,8.74123403]
[1730527136743,5.9898,166.95,166.91,1.49923625]
[1730527137043,5.9898,166.95,166.92,1.49923625]
[1730527137223,5.9898,166.95,166.93,1.49923625]
[1730527137422,5.9898,166.95,166.9,8.74123403]
[1730527137638,5.9898,166.95,166.91,1.49923625]
[1730527137824,5.9898,166.95,166.9,8.74123403]
[1730527137825,5.9898,166.95,166.92,1.49923625]
[1730527138022,5.9898,166.95,166.93,1.49923625]
[1730527138337,5.9898,166.95,166.9,8.74123403]
[1730527138643,5.9898,166.95,166.91,1.49926007]
[1730527138818,5.9898,166.95,166.9,8.74123403]
[1730527139023,5.9898,166.95,166.91,1.49925825]
[1730527139323,5.9898,166.95,166.92,1.49925825]
[1730527139641,5.9898,166.95,166.93,1.49925825]
[1730527139833,5.9898,166.95,166.9,8.74123403]
[1730527140142,5.9898,166.95,166.91,1.49925851]
[1730527140439,5.9898,166.95,166.92,1.49925851]
[1730527140739,5.9898,166.95,166.93,1.49925851]
[1730527140944,5.9898,166.95,166.94,1.49925851]
[1730527141317,5.9898,166.95,166.94,1.49923524]
[1730527141639,5.9898,166.95,166.9,8.74123403]
[1730527142031,5.9898,166.95,166.91,1.49922884]
[1730527142335,5.9898,166.95,166.92,1.49922884]
[1730527142635,5.9898,166.95,166.93,1.49922884]
[1730527142830,5.9898,166.95,166.94,1.49922884]
[1730527144039,5.9898,166.95,166.9,8.74123403]
[1730527144246,5.9898,166.95,166.91,1.49925851]
[1730527144543,5.9898,166.95,166.92,1.49925851]
[1730527144728,5.9898,166.95,166.93,1.49925851]
[1730527145038,5.9898,166.95,166.89,14.73313403]
[1730527145250,5.9898,166.95,166.9,1.49925775]
[1730527145419,5.9898,166.95,166.91,1.49925775]
[1730527145623,14.73103403,166.95,166.92,1.49925775]
[1730527145823,8.74123403,166.94,166.93,1.49925775]
[1730527148542,14.73153403,166.94,166.89,8.74123403]
[1730527148737,14.73153403,166.94,166.93,1.499258]
[1730527150249,14.73153403,166.94,166.89,8.74123403]
[1730527150428,14.73153403,166.94,166.93,1.499258]
[1730527150744,14.73153403,166.94,166.9,1.499258]
[1730527151740,14.73153403,166.94,166.89,8.74123403]
[1730527151951,14.73153403,166.94,166.9,1.49923676]
[1730527152137,14.73153403,166.94,166.91,1.49923676]
[1730527152326,14.73153403,166.94,166.92,1.49923676]
[1730527152523,14.73153403,166.94,166.93,1.49923676]
[1730527153531,14.73153403,166.94,166.93,1.49928767]
[1730527153829,14.73153403,166.94,166.93,1.49928776]
[1730527157136,14.73153403,166.94,166.88,29.71423403]
[1730527157326,8.74123403,166.93,166.88,29.71423403]
[1730527157532,8.74123403,166.93,166.89,1.49932245]
[1730527157731,8.74123403,166.93,166.9,1.49932245]
[1730527157955,8.74123403,166.93,166.91,1.49932245]
[1730527158139,8.74123403,166.93,166.92,1.49932245]
[1730527160746,14.73183403,166.93,166.88,29.71423403]
[1730527160949,14.73183403,166.93,166.92,1.49932188]
[1730527161642,14.73183403,166.93,166.88,29.71423403]
[1730527161846,14.73183403,166.93,166.89,1.49932294]
[1730527162050,14.73183403,166.93,166.9,1.49932294]
[1730527162254,14.73183403,166.93,166.91,1.49932294]
[1730527162556,14.73183403,166.93,166.92,1.49932294]
[1730527164851,14.73183403,166.93,166.92,1.49933548]
[1730527168850,14.73183403,166.93,166.88,29.71423403]
[1730527169162,14.73183403,166.93,166.89,1.49940068]
[1730527169347,14.73183403,166.93,166.9,1.49940068]
[1730527169657,14.73183403,166.93,166.91,1.49940068]
[1730527169868,14.73183403,166.93,166.88,29.71423403]
[1730527170045,14.73183403,166.93,166.89,1.4993774]
[1730527170241,14.73183403,166.93,166.9,1.4993774]
[1730527170442,14.73183403,166.93,166.91,1.4993774]
[1730527170642,14.73183403,166.93,166.88,29.71423403]
[1730527170859,14.73183403,166.93,166.89,1.49936616]
[1730527171062,8.74123403,166.94,166.9,1.49936616]
[1730527171263,8.74123403,166.94,166.91,1.49936616]
[1730527171472,8.74123403,166.94,166.88,29.71423403]
[1730527171844,8.74123403,166.94,166.89,1.49936591]
[1730527172044,8.74123403,166.94,166.9,1.49936591]
[1730527172346,5.9905,166.93,166.91,1.49936591]
[1730527172656,5.9905,166.93,166.88,29.71423403]
[1730527172854,5.9905,166.93,166.89,1.49936616]
[1730527173057,5.9905,166.93,166.9,1.49936616]
[1730527173366,5.9905,166.93,166.91,1.49936616]
[1730527173566,5.9905,166.93,166.88,29.71423403]
[1730527173757,5.9905,166.93,166.89,1.49934315]
[1730527173940,5.9905,166.93,166.9,1.49934315]
[1730527174145,5.9905,166.93,166.91,1.49934315]
[1730527174347,5.9905,166.93,166.88,29.71423403]
[1730527174540,8.74123403,166.95,166.89,10.24060019]
[1730527174754,5.9898,166.95,166.9,10.24060019]
[1730527174957,5.9898,166.95,166.91,1.49936616]
[1730527175154,5.9898,166.95,166.92,1.49936616]
[1730527175373,5.9898,166.95,166.9,8.74123403]
[1730527175571,5.9898,166.95,166.91,1.49926507]
[1730527175762,5.9898,166.95,166.92,1.49926507]
[1730527175959,5.9898,166.95,166.9,8.74123403]
[1730527176170,5.9898,166.95,166.91,1.49929266]
[1730527176355,5.9895,166.96,166.92,10.24052669]
[1730527176670,5.9895,166.96,166.92,8.74123403]
[1730527178874,5.9895,166.96,166.92,14.73203403]
[1730527179169,5.9895,166.96,166.93,1.49921164]
[1730527179376,5.9895,166.96,166.92,8.74123403]
[1730527179562,5.9895,166.96,166.93,1.49921165]
[1730527179876,5.9895,166.96,166.92,8.74123403]
[1730527180053,5.9895,166.96,166.93,1.49920761]
[1730527180253,5.9895,166.96,166.92,8.74123403]
[1730527180456,5.9895,166.96,166.93,1.49920761]
[1730527180655,5.9895,166.96,166.92,8.74123403]
[1730527180850,5.9895,166.96,166.93,1.49920736]
[1730527181060,5.9895,166.96,166.92,8.74123403]
[1730527181275,5.9895,166.96,166.93,1.49920761]
[1730527181462,5.9895,166.96,166.92,8.74123403]
[1730527181770,5.9895,166.96,166.93,1.49920761]
[1730527181950,5.9895,166.96,166.92,8.74123403]
[1730527182153,5.9895,166.96,166.93,1.49920761]
[1730527182355,5.9895,166.96,166.92,8.74123403]
[1730527182555,5.9895,166.96,166.93,1.49920751]
[1730527182749,5.9895,166.96,166.92,8.74123403]